Cogmind - Beta 16 *** ADVENTURER MODE // 2025.11.01 @ 20:58:56 Player: lazrfloyd Result: Destroyed by as-96887 with Assembled Blade Performance ------------- Evolutions (1) 500 Regions Visited (3) 600 Robots Destroyed (71) 355 Value Destroyed (1747) 1747 Prototype IDs (4) 80 Alien Tech Used (0) 0 Bonus (0) 0 TOTAL SCORE: 3282 Bonus ------- None Cogmind --------- Core Integrity 0/400 Matter 296/300 Energy 250/250 System Corruption 0% Temperature Warm (106) Movement Walking (105) Location -9/Mines Parts ------- > --- POWER (1) -------- Ion Engine > --- PROPULSION (4) --- Aluminum Leg Aluminum Leg Aluminum Leg Aluminum Leg > --- UTILITY (2) ------ Large Storage Unit Structural Scanner > --- WEAPON (2) ------- Particle Gun Light Assault Rifle > --- INVENTORY (15) --- Improved Ion Engine Improved Ion Engine Light Nuclear Core Aluminum Leg Aluminum Leg Large Storage Unit Large Matter Pod (150) Light Assault Rifle Light Assault Rifle Improved Light Cannon Peak State ------------ > --- POWER ------------ Ion Engine > --- PROPULSION ------- Aluminum Leg Aluminum Leg Aluminum Leg Aluminum Leg > --- UTILITY ---------- Large Storage Unit Improved Terrain Scan Processor > --- WEAPON ----------- Improved Medium Laser Improved Assault Rifle > --- INVENTORY -------- Improved Ion Engine Improved Ion Engine Light Nuclear Core Aluminum Leg Medium Storage Unit Large Matter Pod Structural Scanner Terrain Scan Processor Particle Gun Light Assault Rifle Light Assault Rifle Light Assault Rifle [Rating: 16] Favorites ----------- Power Ion Engine Engine Ion Engine Propulsion Aluminum Leg Leg Aluminum Leg Utility Medium Storage Unit Device Structural Scanner Storage Medium Storage Unit Processor Signal Interpreter Weapon Light Assault Rifle Energy Gun Medium Laser Ballistic Gun Light Assault Rifle Build | -11 -10 -9 -9 ------- Run | Yrd Mat Mat Min Slots Evolved 2 | . . 2 . Power . | . . . . Propulsion 2 | . . 2 . Utility . | . . . . Weapon . | . . . . Parts Attached 45 | 6 5 33 1 Power 7 | 1 1 5 . Engine 7 | 1 1 5 . Core . | . . . . Reactor . | . . . . Propulsion 17 | 2 1 14 . Treads . | . . . . Leg 17 | 2 1 14 . Wheel . | . . . . Hover . | . . . . Flight . | . . . . Utility 9 | 1 2 6 . Device 2 | . 1 1 . Storage 5 | 1 1 3 . Processor 2 | . . 2 . Hackware . | . . . . Protection . | . . . . Artifact . | . . . . Weapon 12 | 2 1 8 1 Energy Gun 4 | 1 . 3 . Energy Cannon . | . . . . Ballistic Gun 8 | 1 1 5 1 Ballistic Cannon . | . . . . Launcher . | . . . . Special Weapon . | . . . . Impact Weapon . | . . . . Slashing Weapon . | . . . . Piercing Weapon . | . . . . Special Melee Weapon . | . . . . Unidentified Prototypes . | . . . . Parts Lost 11 | . 1 10 . Power . | . . . . Propulsion 5 | . . 5 . Utility 1 | . . 1 . Weapon 5 | . 1 4 . Highest Loss Streak 4 | . 1 4 . To Critical Strikes . | . . . . Average Backups 7 | 2 7 7 10 Power 1 | . 1 1 3 Propulsion 1 | 1 2 1 2 Utility 2 | . 1 2 2 Weapon 1 | . 2 1 3 Tool/Special . | . . . . Unused Backups 15 | . 3 6 6 Power 4 | . . 2 2 Propulsion 2 | . . 2 . Utility 4 | . 1 2 1 Weapon 5 | . 2 . 3 Tool/Special . | . . . . Average Slot Usage (%) 94 | . 97 92 100 Engine 11 | . 14 10 11 Leg 35 | . 28 38 44 Device 8 | . 12 6 11 Storage 11 | . 14 10 11 Processor 2 | . . 3 . Energy Gun 9 | . 13 7 11 Ballistic Gun 13 | . 14 13 11 Peak Build Rating 16 | 6 8 16 11 Average Rating 9 | 4 6 10 11 On Entrance 6 | . 6 7 11 Avg Prop Armor Cover (%) 6 | . . 6 . Naked Turns 1 | . . 1 . Heaviest Build 32 | 14 20 32 30 Greatest Support 40 | 20 20 40 40 Greatest Overweight (x) 7 | 3 . 7 . Average Overweight (x) . | . . . . Largest Inventory Capacity 15 | 8 10 15 15 Average Capacity 11 | 7 9 12 15 Most Carried 12 | 5 10 12 11 Average Carried 7 | 2 7 7 10 Final Capacity 15 | 8 10 15 15 Final Carried 10 | 4 6 10 10 Class Distribution -------------------- 64% | Scavenger-Mutant 35% | Mutant Dominant Class ---------------- Mutant | -10/Materials Scavenger-Mutant | -9/Materials Scavenger-Mutant | -9/Mines Resources | -11 -10 -9 -9 ----------- Run | Yrd Mat Mat Min Matter Collected 1285 | 199 320 748 18 Remotely . | . . . . Salvage Created 2138 | . 376 1705 57 Parts 130 | . 26 99 5 Haulers Intercepted . | . . . . Recyclers Shooed 2 | . 2 . . Parts Field Recycled . | . . . . Retrieved Matter . | . . . . Parts Self-Destructed . | . . . . Prevented . | . . . . Parts Restored . | . . . . Kills | -11 -10 -9 -9 ------- Run | Yrd Mat Mat Min Combat Hostiles Destroyed 60 | . 12 43 5 Guns 59 | . 12 42 5 Classes Destroyed 8 | . 4 3 1 Worker 2 | . 1 1 . Mechanic 1 | . . 1 . Operator 1 | . . 1 . Watcher 8 | . 3 5 . Swarmer 24 | . 6 14 4 Grunt 26 | . 6 20 . Sentry 9 | . . 9 . Assembled 1 | . . . 1 Best Kill Streak 6 | . 4 6 4 Combat Bots Only 6 | . 4 6 4 Max Kills in Single Turn 2 | . 2 2 1 Gunslinging 1 | . . 1 . Exploded . | . . . . Melee . | . . . . Uniques/NPCs Destroyed . | . . . . Combat | -11 -10 -9 -9 -------- Run | Yrd Mat Mat Min Hostile Shots Fired 395 | . 39 307 49 Missed 112 | . 10 85 17 Hits 283 | . 29 222 32 Melee 5 | . . . 5 Projectile 278 | . 29 222 27 Critical Strikes 5 | . . 5 . Part Disruptions 1 | . . 1 . Damage Taken 2500 | . 301 1904 295 Core 474 | . 69 334 71 Absorbed by Shields . | . . . . Ignored by Resistances 768 | . 92 587 89 Core Remaining (%) 86 | 100 72 . . Volleys Fired 186 | . 29 145 12 Largest 2 | . 2 2 2 Hottest 85 | . 70 85 85 Shots Fired 360 | . 58 278 24 Gun 360 | . 58 278 24 Cannon . | . . . . Launcher . | . . . . Special . | . . . . Kinetic 233 | . 29 192 12 Thermal 127 | . 29 86 12 Explosive . | . . . . Electromagnetic . | . . . . Robot Hit Streak 33 | . 12 33 5 Robot Miss Streak 3 | . 1 3 1 Penetration Max . | . . . . Secondary Targets 9 | . 1 7 1 Max Gunslinging Chain 1 | . 1 1 1 Shots Hit Robots 278 | . 44 218 16 Core Hits 123 | . 25 89 9 Critical Kills . | . . . . Critical Parts Destroyed 1 | . . 1 . Critical Strikes 7 | . 4 3 . Burn 6 | . 4 2 . Destroy 1 | . . 1 . Melee Attacks . | . . . . Impact . | . . . . Slashing . | . . . . Piercing . | . . . . Sneak Attacks . | . . . . Combat Hostiles . | . . . . Follow-up Attacks . | . . . . Damage Inflicted 3597 | . 588 2806 203 Guns 3409 | . 543 2663 203 Cannons . | . . . . Explosions 114 | . . 114 . Melee . | . . . . Ramming 74 | . 45 29 . Kinetic 1927 | . 229 1604 94 Thermal 1514 | . 314 1091 109 Explosive . | . . . . Electromagnetic 82 | . . 82 . Impact . | . . . . Slashing . | . . . . Piercing . | . . . . Highest Corruption . | . . . . Average Corruption . | . . . . Corruption Purged . | . . . . Corruption Blocked . | . . . . Overload Shots . | . . . . Overflow Damage 6 | . . 6 . Projectiles . | . . . . Explosions 6 | . . 6 . Melee . | . . . . Knockbacks 1 | . 1 . . Impact 1 | . 1 . . Kinetic . | . . . . Secondary . | . . . . Self-Inflicted Damage 16 | . . 16 . Shots 1 | . . 1 . Rammed . | . . . . Targets Rammed 12 | . 10 2 . Kicked 12 | . 10 2 . Crushed . | . . . . Highest Temperature 186 | . 72 186 151 Average Temperature 44 | . 28 46 66 Received Heat Transfer 882 | . 96 786 . Siege Activations . | . . . . Martial Activations . | . . . . Shielding Activations . | . . . . Robots Disrupted . | . . . . Combat Hostiles . | . . . . Robots Corrupted . | . . . . Combat Hostiles . | . . . . Parts Fried . | . . . . Impact Corruptions . | . . . . Robots Melted 1 | . . 1 . Combat Hostiles 1 | . . 1 . Parts Melted 11 | . 5 6 . Heat Transferred 4015 | . 1221 2535 259 Parts Sabotaged . | . . . . Parts Stolen . | . . . . Parts Stripped . | . . . . Power Chain Reactions 1 | . . 1 . Alert | -11 -10 -9 -9 ------- Run | Yrd Mat Mat Min Maximum Alert Level 1 | . . 1 . Low Security (%) 85 | 100 100 77 100 Level 1 14 | . . 22 . Level 2 . | . . . . Level 3 . | . . . . Level 4 . | . . . . Level 5 . | . . . . High Security . | . . . . Max Security . | . . . . Peak Influence 258 | . 191 258 106 Initial 16 | . . 13 16 Average 97 | . 70 113 79 Influence Increases 1604 | . 358 1156 90 Destroy 0b10 Robot/C 1180 | . 240 860 80 Destroy 0b10 Robot/NC 60 | . 20 40 . Destroy Leader 276 | . 46 220 10 Successful Hack 36 | . 21 15 . Disable Machine 18 | . . 18 . Destroy Structure 4 | . 1 3 . Lose Combat Pursuer 30 | . 30 . . Influence Decreases 1538 | . 319 1145 74 Entered New Map 60 | . . 26 34 Time Decay 1218 | . 309 869 40 Lost Part 110 | . 10 100 . Purge Threat 150 | . . 150 . Squads Dispatched 8 | . 2 6 . Investigation 6 | . 2 4 . Extermination . | . . . . Reinforcement 2 | . . 2 . Assault . | . . . . Garrison . | . . . . Intercept . | . . . . Searches Triggered . | . . . . Construction Impeded . | . . . . Haulers Reinforced . | . . . . Active Scanning Responses . | . . . . Cargo Convoy Interrupts . | . . . . Stealth | -11 -10 -9 -9 --------- Run | Yrd Mat Mat Min Distress Signals 1 | . . 1 . Communications Jammed . | . . . . Distress Signals . | . . . . Times Spotted 86 | . 19 53 14 Peak Tracking Total 20 | . 5 5 20 Tactical Retreats 4 | . 2 . 2 Traps | -11 -10 -9 -9 ------- Run | Yrd Mat Mat Min Traps Triggered 7 | . 2 5 . Indirectly . | . . . . Trap Hack Attempts . | . . . . Triggered . | . . . . Disarmed . | . . . . Reprogrammed . | . . . . Reused . | . . . . Traps Extracted . | . . . . Installed . | . . . . Triggered . | . . . . Machines | -11 -10 -9 -9 ---------- Run | Yrd Mat Mat Min Machines Disabled 2 | . . 2 . Max in Single Turn 1 | . . 1 . Machines Repaired . | . . . . Machines Dismantled . | . . . . Machines Sabotaged . | . . . . Overloaded Fab Kills . | . . . . Hacking | -11 -10 -9 -9 --------- Run | Yrd Mat Mat Min Machines Accessed 19 | . 9 10 . Terminals 13 | . 7 6 . Fabricators . | . . . . Repair Stations . | . . . . Recycling Units 4 | . 2 2 . Scanalyzers 2 | . . 2 . Garrison Access . | . . . . Total Hacks 51 | . 29 22 . Successful 35 | . 20 15 . Failed 15 | . 9 6 . Catastrophic 1 | . 1 . . Database Lockouts 1 | . . 1 . Manual . | . . . . Terminals 36 | . 25 11 . Fabricators . | . . . . Repair Stations . | . . . . Recycling Units 9 | . 4 5 . Scanalyzers 6 | . . 6 . Garrison Access . | . . . . Terminal Hacks 23 | . 16 7 . Robot Analysis 2 | . 1 1 . Prototype ID Bank 3 | . 2 1 . Branch Access Points 1 | . 1 . . Emergency Access Points 1 | . . 1 . Scanalyzer Index 1 | . 1 . . Alert Level 2 | . 2 . . Unreport Threat 1 | . . 1 . Locate Traps 1 | . 1 . . Dispatch Records 1 | . 1 . . Transport Status 1 | . 1 . . Investigation Status 1 | . 1 . . Recall Investigation 1 | . 1 . . Hauler Manifests 2 | . 1 1 . Registered Components 1 | . . 1 . Zone Layout 4 | . 3 1 . Fabricator Hacks . | . . . . Repair Station Hacks . | . . . . Recycling Unit Hacks 7 | . 4 3 . Recycle Component 1 | . 1 . . Process 1 | . 1 . . Report Inventory 4 | . 2 2 . Retrieve Components 1 | . . 1 . Scanalyzer 5 | . . 5 . Insert Component 1 | . . 1 . Retrieve Study 4 | . . 4 . Garrison Access Hacks . | . . . . Unauthorized Hacks . | . . . . Terminals . | . . . . Fabricators . | . . . . Repair Stations . | . . . . Recycling Units . | . . . . Scanalyzers . | . . . . Garrison Access . | . . . . Data Cores Recovered . | . . . . Used . | . . . . Hacking Detections 10 | . 5 5 . Full Trace Events 2 | . 1 1 . Feedback Events . | . . . . Feedback Blocked . | . . . . Robot Schematics Acquired . | . . . . Robots Built . | . . . . Authchips . | . . . . Time . | . . . . Total Robot Build Rating . | . . . . Part Schematics Acquired . | . . . . Parts Built . | . . . . Authchips . | . . . . Time . | . . . . Total Part Build Rating . | . . . . Part Studies Acquired 4 | . . 4 . Parts Repaired . | . . . . Time . | . . . . Parts Recycled 1 | . 1 . . Recycled Matter 142 | . 142 . . Retrieved Matter . | . . . . Retrieved Components 6 | . . 6 . Parts Scanalyzed . | . . . . Part Schematics Acquired . | . . . . Parts Damaged . | . . . . Bothacking | -11 -10 -9 -9 ------------ Run | Yrd Mat Mat Min Used RIF Installer . | . . . . Robots Hacked . | . . . . Non-combat . | . . . . Combat . | . . . . Robot Hacks Applied . | . . . . Relay Couplers Released . | . . . . Fabnet Peak Effective % . | . . . . Robots Rewired . | . . . . Allies Hacked . | . . . . Hacks Repelled . | . . . . Allies | -11 -10 -9 -9 -------- Run | Yrd Mat Mat Min Total Allies . | . . . . Largest Group . | . . . . Highest-Rated Group . | . . . . Highest-Rated Ally . | . . . . Total Orders . | . . . . Ally Attacks . | . . . . Total Damage . | . . . . Kills . | . . . . Allies Corrupted . | . . . . Allies Melted . | . . . . Intel | -11 -10 -9 -9 ------- Run | Yrd Mat Mat Min Active Infowar (turns) 1854 | . 642 1119 93 Sensors 691 | . 642 49 . Structural 1163 | . . 1070 93 Robot Analysis Total 2 | . 1 1 . Derelict Logs Recovered . | . . . . Drone Launches . | . . . . Drone Recoveries . | . . . . Exploration | -11 -10 -9 -9 ------------- Run | Yrd Mat Mat Min Turns Passed 2701 | 72 729 1807 93 Spaces Moved 1762 | 51 499 1157 55 Core 10 | 8 . 2 . Treads . | . . . . Legs 1752 | 43 499 1155 55 Wheels . | . . . . Hover . | . . . . Flight . | . . . . Fastest Speed 50 | 50 120 50 105 Average Speed 111 | 116 120 108 105 Slowest Speed 400 | 200 120 400 105 Overloaded Moves . | . . . . Propulsion Burnouts . | . . . . Robots Hopped . | . . . . Potential Cave-ins . | . . . . Cave-ins Triggered . | . . . . Exploration Rate (%) 49 | 5 91 89 13 Regions Visited 3 Branch Regions 1 Pre-discovered Areas . | . . . . Known Exits Taken . | . . . . Unknown Exits Taken 3 | 1 1 1 . Scrap Searched . | . . . . Spaces Dug . | . . . . Terrain Destroyed 2 | . . 2 . Melee . | . . . . Projectile . | . . . . AOE 2 | . . 2 . Terrain Rammed . | . . . . Walls Destroyed . | . . . . Machines Disabled . | . . . . Actions | -11 -10 -9 -9 --------- Run | Yrd Mat Mat Min Total 2140 | 61 568 1442 69 Wait 75 | . 12 63 . Move 1759 | 50 498 1156 55 Hop . | . . . . Pick Up 28 | 5 7 16 . Fast Attach 22 | 5 1 16 . Attach 6 | 1 1 4 . Detach 1 | . . 1 . Swap 27 | . 5 21 1 Drop 24 | . 5 18 1 Fire 186 | . 29 145 12 Melee . | . . . . Ram . | . . . . Kick 12 | . 10 2 . Crush . | . . . . Escape Stasis . | . . . . Rewire . | . . . . Trap . | . . . . Miscellaneous . | . . . . Route ------- -11/Scrapyard -10/Materials (discovered 5 exits: *Mat x3 / *Min x2) -9/Materials (discovered 7 exits: [*Mat x3] / [*Min x2] / [*Sto x2]) -9/Mines History --------- Turn | Location | Event 22 | -11/Scrapyard | Discovered new exit (range 14) 73 | -11/Scrapyard | Entered Materials 296 | -10/Materials | Discovered new exit (range 9) 303 | -10/Materials | Build established: Mutant 357 | -10/Materials | Identified exit to Mines 449 | -10/Materials | Discovered new exit (range 14) 479 | -10/Materials | Discovered new exit (range 20) 530 | -10/Materials | Discovered new exit (range 11) 802 | -10/Materials | Entered another Materials area 802 | -9/Materials | Evolved 2 slots: Propulsion x2 918 | -9/Materials | Lost 4 parts (1n1u2w) 1185 | -9/Materials | Discovered new exit (range 11) 1224 | -9/Materials | Build established: Scavenger-Mutant 1414 | -9/Materials | Discovered new exit (range 10) 1452 | -9/Materials | Core integrity fell below 50% 1509 | -9/Materials | Discovered new exit (range 6) 1536 | -9/Materials | Discovered new exit (range 14) 1653 | -9/Materials | Discovered new exit (range 4) 1799 | -9/Materials | Released all parts (5) 1817 | -9/Materials | Lost 3 parts (3n) 2011 | -9/Materials | Discovered new exit (range 13) 2169 | -9/Materials | Core integrity fell below 20% 2458 | -9/Materials | Discovered new exit (range 14) 2511 | -9/Materials | Central database locked down 2609 | -9/Materials | Entered Mines 2649 | -9/Mines | Assembled infested the area 2702 | -9/Mines | Destroyed by as-96887 with Assembled Blade Last Messages --------------- 02533_ S-10 Pest destroyed. 02541_ Flight Unit melted. 02541_ S-10 Pest destroyed. 02542_ Acquired 6 matter. 02546_ Acquired Lgt. Assault Rifle+. 02547_ Dropped Lgt. Assault Rifle+. 02550_ Acquired 10 matter. LOCATION=UNKNOWN GOAL=ESCAPE Something is scanning the area. 02609_ S-10 Pest destroyed. 02634_ Dropped Lgt. Assault Rifle+. 02634_ Acquired 12 matter. 02649_ ALERT: Infestation in the mines, dispatching Demolisher response squad. [Achievement: Hunted] 02664_ Acquired 6 matter. 02697_ Knocked back. 02700_ as-33712 destroyed. 02700_ Switching to secondary target: as-96887. Map ----- +----------------------------------------------------+ | | | | | | | | | | | | | | | | | | | | | | | | | | | | | | | | | | | | | | | ???????????????????????????????????????????? | | ???????????########????????????????????????? | | ??????????? ##########?????????????????????? | | ??????????? #####????????????????????? | | ??????????????? ###????????????????????? | | ????????????????? $##????????????????????? | | ?????????????????##@###????????????????????? | | ?????????????????##a###????????????????????? | | ????????????????###%####???????????????????? | | ???????????????####aa###???????????????????? | | ???????????????###aa ##???????????????????? | | ???????#####???## aa ##???????????????????? | | ??????#######??## ###???????????????????? | | ?######## ##?### ####???????????????????? | | ?####### ##### ###????????????????????? | | ?## #### ##?????????????????????? | | ?## ## ###?????????????????????? | | ?## #####?????????????????????? | | ?###??##### ######??????????????????????? | | ??????##### ######????????????????????????? | | ?????????## ####??????????????????????????? | | ?????????## ##????????????????????????????? | | ?????????## ##????????????????????????????? | | ?????????## ##????????????????????????????? | | ?????????## ##????????????????????????????? | | ?????????## ##????????????????????????????? | | ?????????## ##????????????????????????????? | | ?????????## ##????????????????????????????? | | ?????????## ##????????????????????????????? | | ???????#### ####??????????????????????????? | | ???????#### *####??????????????????????????? | +----------------------------------------------------+ Best States ------------- Heat Dissipation 28 Energy Generation 12 Energy Capacity 265 Matter Stores 300 Matter Capacity 300 Sight Range 16 Robot Scan Range 14 Terrain Scan Density 10 Resistance: KI 20 Resistance: TH 20 Resistance: EX 20 Resistance: EM 20 Resistance: I 20 Resistance: S 20 Resistance: P 20 Evasion (%) 55 Offensive Hacking 10 Item Schematics ----------------- None Robot Schematics ------------------ None Fabricated ------------ Nothing Repaired ---------- Nothing Studied --------- Aluminum Leg | -9/Materials | Hacked Lgt. Assault Rifle | -9/Materials | Hacked Lgt. Ion Engine | -9/Materials | Hacked Imp. Ion Engine | -9/Materials | Hacked Alien Tech Used ----------------- None Achievements -------------- Hunted Challenges ------------ None Game ------ Seed NeutrinoAntimatterBuckler Manual? 0 Play Time 01:23:59 Cumulative 22.7 hours Start 2025.11.01 @ 17:37:18 End 2025.11.01 @ 20:58:56 Sessions 1 Manual Loads 0 Difficulty Adventurer Special Mode None Game No. 9 Rogue 0 Adventurer 9 Explorer 0 Win Type - Total 0 Types 0/0/0/0/0/0/0/0/0/0 Lore% 6 Gallery% 14 Achievement% 11 Wizard Run 0 Options --------- Layout 0 ASCII 0 Keyboard 0 Movement Mouse Keybinds 0 Fullscreen 2 Font 36/Smallcaps Map View 76x50 Zoom Use 25% Tactical HUD 1 Map Filters NONE Filters NONE Steam 1 RUN: 581dd3de-ec0e-4915-91f5-471483f0d18d